{"text_format":"3","workbook":"xlsx","n_sheets":1,"sheets":["Plan1"],"not_rendered":{"comments":1},"read":"whole","date_system":"1900"}

{"sheet":"Plan1","index":0,"n_rows":64,"n_cols":21,"rows_kept":64,"merged":[[0,0,0,6],[1,0,1,6],[3,8,3,9]]}
["COORDENAÇÃO DE ESTÁGIO E EGRESSOS"]
["ACOMPANHAMENTO DOS CONVÊNIOS E CONTRATOS DE ESTÁGIO"]
[]
[{"$nulls":8},"INSTITUIÇÃO PARCEIRA"]
["N°","SITUAÇÃO","INSTRUMENTO JURÍDICO","CAMPUS DE ORIGEM","CIDADE","ESTADO","CNPJ/CPF","PROCESSO SEI","NOME EMPRESARIAL","TÍTULO DO ESTABELECIMENTO\n(nome de fantasia)","Natureza","Data\nInício","Duração em anos","Data\nFim","Endereço\nCompleto","E-mail","Ramo de Atividade","Representante","Cargo","Fone","Observações"]
[1,{"$f":"IF(L6<>\"\",IF(N6>=TODAY(),\"Em andamento\",\"VENCIDO\"),\"\")","v":"Em andamento"},"Convênio",{"$nulls":5},"Instituto Compartilha - SAMEAC",null,null,"2020-01-21",5,{"$f":"IF(L6<>\"\",EDATE(L6,M6*12),\"\")","v":"2025-01-21"}]
[2,"Em andamento","Contrato",null,"JUAZEIRO DO NORTE","CE","05.342.580.0001/19",null,"Universidade Patativa do Assaré ","UPA","PRIVADA","2020-02-05",5,"2025-02-05","Rua Catulo da Paixão Cearense - 15º andar, 175 - sala 1504, Triângulo","convenios.ies@universidadepatativa.com.br","Agente de Integração"]
[3,"Em andamento","Convênio",null,"FORTALEZA","CE","36.180.382/0001-20","23255.001742/2020-18","LINK ESTÁGIO AGENTE DE INTEGRAÇÃO","LINK ",null,"2020-03-11",5,"2025-03-11"]
[4,"Em andamento","Contrato",null,"SOBRAL","CE","11.462.627/0001-80","23255.001736/2020-61","GRUPO IMPERIAL BRASIL – MASTER ESTÁGIOS & MILPLAN CONSTRU","MASTER ESTÁGIOS E CURSOS PROFISSIONALIZANTES",null,"2020-04-08",5,"2025-04-08",null,"masterestagios@outlook.com","Agente de Integração"]
[5,"Em andamento","Convênio",{"$nulls":5},"Universidade Federal de Santa Catarina - UFSC",null,null,"2020-08-27",5,"2025-08-27"]
[6,"Em andamento","Contrato",null,"GOIÂNIA","GO","11.595.331/0001-38","23255.004888/2020-15","Instituto de Promoção Humana, Aprendizagem e Cultura","IPHAC",null,"2020-09-14",5,"2025-09-14",null,"prospeccao@iphac.org.br","Agente de Integração"]
[7,"Em andamento","Contrato",{"$nulls":5},"CENTRO DE ESTÁGIOS - PPM HUMAN RESOURCES LTDA",null,null,"2020-10-08",5,"2025-10-08"]
[8,"Em andamento","Contrato",null,"SÃO PAULO","SP","12.375.410/0001-04","23255.005699/2020-60","CETTE SOLUCOES EM NEGOCIOS LTDA","CETTE SOLUCOES EM NEGOCIOS",null,"2020-10-14",5,"2025-10-14",null,"adm@cetterh.com.br","Agente de Integração"]
[9,"Em andamento","Contrato",{"$nulls":5},"CANTEIRO",null,null,"2020-10-19",5,"2025-10-19"]
[10,"Em andamento","Contrato",{"$nulls":5},"ULTRA+ RH CONSULTORIA",null,null,"2020-12-16",5,"2025-12-16",null,"consultoria@ultramaisrh.com.br","Agente de Integração"]
[11,"Em andamento","Contrato",{"$nulls":5},"FACITRH - ESTAGIÁRIOS E APRENDIZES",null,null,"2020-12-17",5,"2025-12-17",null,"facitestagios@gmail.com","Agente de Integração"]
[12,"Em andamento","Contrato",null,"RECIFE","PE","11.000.361/0001-54","23255.002283/2021-71","INSTITUTO EUVALDO LODI - NUCLEO REGIONAL DE PERNAMBUCO","IEL/PE",null,"2021-04-27",5,"2026-04-27","AV CRUZ CABUGA, 767, Bairro SANTO AMARO  CEP: 50.040-000,","mercado@ielpe.org.br","Agente de Integração"]
[13,"Em andamento","Contrato",null,"TIANGUÁ","CE","38.082.364/0001-30","23255.002823/2021-16","CONSULTORIA EMPRESARIAL E FORMACAO PROFISSIONAL LTDA","CFP",null,"2021-05-28",5,"2026-05-28",null,"exitusbrasilcfp@gmail.com","Agente de Integração"]
[14,"Em andamento","Convênio",null,"FORTALEZA","CE","00.977.419/0001-06","23255.004189/2021-56","INSTITUTO DE ESTUDOS PESQUISAS E PROJETOS DA UECE","IEPRO",null,"2021-07-30",5,"2026-07-30"]
[15,"Em andamento","Convênio",null,"EUSÉBIO","CE","23.563.067/0001-30","23255.005236/2021-89","PREFEITURA MUNICIPAL DO EUSÉBIO",null,null,"2021-09-20",5,"2026-09-20"]
[16,"Em andamento","Contrato",null,"MARINGÁ","PR","06.993.363/0001-51","23255.004022/2021-95","INSTITUTO PROE","IPROE",null,"2021-10-04",5,"2026-10-04",null,"superintendencia.iproe@gmail.com","Agente de Integração"]
[17,"Em andamento","Convênio",null,"PACAJUS","CE","07.384.407/0001-09","23255.006331/2021-08","PREFEITURA MUNICIPAL DE PACAJUS","PMP",null,"2021-10-26",5,"2026-10-26"]
[18,"Em andamento","Contrato",null,"RIO DE JANEIRO","RJ","33.661.745/0001-50","23255.007542/2021-50","CENTRO DE INTEGRAÇÃO EMPRESA-ESCOLA DO ESTADO DO RIO DE JANEIRO","CIEE/RJ",null,"2021-12-07",5,"2026-12-07",null,"convenio.ie@cieerj.org.br","Agente de Integração"]
[19,"Em andamento","Contrato",null,"FORTALEZA","CE","43.126.366/0005-48","23489.001512/2021-96","INSTITUTO BRASILEIRO PRÓ EDUCAÇÃO TRABALHO E DESENVOLVIMENTO","ISBET",null,"2021-12-14",5,"2026-12-14",null,"estagio.ce@isbet.org.br","Agente de Integração"]
[20,"Em andamento","Convênio",null,"FORTALEZA","CE","03.648.344/0001-08","23255.002017/2021-48","SERVIÇO NACIONAL DE APRENDIZAGEM COMERCIAL","SENAC",null,"2021-12-14",5,"2026-12-14"]
[21,"Em andamento","Contrato",null,"PORTO ALEGRE","RS","05.449.614/0001-79","23255.000306/2022-93","ASSOCIACAO DE INTEGRACAO EMPRESA ESCOLA","INTEGRAR",null,"2022-01-18",5,"2027-01-18",null,"kimberly.gerlack@integrar-rs.com.br","Agente de Integração"]
[22,"Em andamento","Contrato",null,"PORTO ALEGRE","RS","87.135.919/0001-70","23255.008020/2021-75","ASSOCIACAO BRASILEIRA DE RECURSOS HUMANOS","ABRH-RS",null,"2022-01-24",5,"2027-01-24",null,"selecao@abrhrs.org.br","Agente de Integração"]
[23,"Em andamento","Contrato",null,"PORTO ALEGRE","RS","09.103.998/0001-24","23262.000320/2022-06","CENTRO DE INTEGRAÇÃO E CAPACITAÇÃO EM TECNOLOGIA DA INFORMAÇÃO","CIC-TI",null,"2022-02-22",5,"2027-02-22","AV. IPIRANGA, 6681 PD 96D SL 207 – PARTENON","estagios@assespro-rs.org.br","Agente de Integração","ROSELENE DA ROSA GARCIA",null,"(51) 3252-5180"]
[24,"Em andamento","Contrato",null,"PACAJUS","CE","09.557.713/0001-25","23255.001606/2022-90","INSTITUTO DE EDUCAÇÃO PORTAL","IEP",null,"2022-02-24",5,"2027-02-24","ROD PADRE CÍCERO ROMAO BATISTA, S/N KM 54 - ZONRA RURAL - PACAJUS - CE - CEP 62870-000","gestor.financeiro@portaliep.com","Agente de Integração","MONICA RABELO",null,"(85) 3348-0120","Refazer o convênio, utilizando o modelo de contrato"]
[25,"Em andamento","Contrato",null,"SÃO PAULO","SP","02.704.396/0001-83","23264.000151/2022-86","NUBE NÚCLEO BRASILEIRO DE ESTÁGIOS LTDA","NUBE",null,"2022-03-07",5,"2027-03-07","Rua Barão de Itapetininga, 140, 9º Andar, Centro, CEP 01042-000","escolas@nube.com.br ","Agente de Integração de Vagas de Estágio","Camila Garcia Pimentel",null,"(11) 3154-7688"]
[26,"Em andamento","Contrato",null,"PORTO ALEGRE","RS","31.726.192/0001-41","23255.001626/2022-61","Z-ESTÁGIOS.APP TECNOLOGIA DA INFORMAÇÃO LTDA","ZUNA ESTÁGIOS",null,"2022-03-14",5,"2027-03-14","Av. Assis Brasil, 4500, sl 1205, CEP 91110-000, São Sebastião","laura@zuna.com.br","Agente de Integração","Everton de Souza Mendes",null,"(51)4042.5151","Refazer o convênio, utilizando o modelo de contrato"]
[27,"Em andamento","Contrato",null,"SÃO PAULO","SP","01.846.585/001-28","23262.000493/2022-16","ESTAGIÁRIOS.COM WEB SERVICE LTDA","ESTAGIÁRIOS.COM",null,"2022-03-22",5,"2027-03-22","Av. Paulista 1636 CJ 706, Bela Vista, São Paulo/SP, CEP: 01310-200","info@estagiarios.com","Agente de Integração de Vagas de Estágio","Valter Aparecido Lopes",null,"(11)3951-2185"]
[28,"Em andamento","Contrato",null,"RIO DE JANEIRO","RJ","32.575.605/0001-05",null,"ACADEMIA DO UNIVERSITÁRIO","ACADEMIA DO UNIVERSITÁRIO","PRIVADA","2022-05-10",5,"2027-05-10","Rua Barão, 678, Bl1, apt 206, Praça Seca, Rio de Janeiro, RJ","contato@academiadouniversitario.com.br","Agente de Integração de Vagas de Estágio"]
[29,"Em andamento","Convênio",null,"FORTALEZA","CE","02.533.538/0001-97","23255.003573/2022-12","INSTITUTO DE DESENVOLVIMENTO DO TRABALHO","IDT","ORGANIZAÇÃO SOCIAL","2022-05-13",5,"2027-05-13","Avenida da Universidade 2596 Benfica - Fortaleza/CE CEP: 60.020-180","muniz@idt.org.br","Intermediação com o mundo do trabalho","Vladyson da Silva Viana",null,"(85)2180-6211"]
[30,"Em andamento","Contrato",null,"PORTO ALEGRE","RS","87.878.476/0001-08",null,"FUNDAÇÃO UNIVERSIDADE EMPRESA DE TECNOLOGIA E CIÊNCIAS ","FUNDATEC","PRIVADA","2022-05-26",5,"2027-05-26","Rua Prof. Cristiano Fischer 2012, Partenon | Porto Alegre-RS | CEP 91530-034","estagios@fundatec.org.br","Agente de Integração de Vagas de Estágio","Carlos Henrique da Cunha Castro"]
[31,"Em andamento","Contrato",null,"PORTO ALEGRE","RS","04.997.806/0001-57","23255.002194/2022-13","METTA INTEGRADORA EMPRESA ESCOLA SOC SIMP LTDA","METTA","PRIVADA","2022-07-04",5,"2027-07-04","AV CARLOS GOMES, 2012, SALA 602 E 603 TRES FIGUEIRAS","financeiro1@metta.com","Agente de Integração de Vagas de Estágio","GUSTAVO LONTRA OTERO AVILA","Sócio Proprietário","(55)3286/(55)991868024"]
[32,"Em andamento","Convênio",null,"FORTALEZA","CE","23255.002605/2019-67","23255.002605/2019-67","APOSTILAMENTO AO CONVÊNIO DE STÁGIO DA SEPOG","SEPOG","PÚBLICA","2022-07-21",5,"2027-07-21","Av. Dom Luís, n. 807, Meireles, Fortaleza-CE"]
[33,"Em andamento","Convênio",null,"FORTALEZA","CE","05.371.711/0001-96","23255.004671/2022-77","EMPRESA DE ASSISTÊNCIA TÉCNICA E EXTENSÃO RURAL DO CEARÁ","EMATERCE","PÚBLICA","2022-08-01",5,"2027-08-01","Avenida Bezerra de Menezes, 1820 – São Gerardo/CE","ematerce@ematerce.ce.gov.br","Concedente de vaga de estágio","Antônio Rodrigues Amorim",null,"(85) 31012416"]
[34,"Em andamento","Convênio",null,"FORTALEZA","CE","08.691.976./0001-60","23255.003014/2022-11","SECRETARIA DE PLANEJAMENTO E GESTÃO DO ESTADO DO CEARÁ","SEPLAG","PÚBLICA","2022-08-30",5,"2027-08-30","Centro Administrativo Governador Virgílio Távora, Av. Gen. Afonso de Albuquerque Lima, S/N – Edifício SEPLAG 3º andar, Cambeba, CEP 60830-120",null,"Concedente de vaga de estágio","ADRIANO SARQUIS BEZERRA DE MENEZES","Secretário de Planejamento"]
[35,"Em andamento","Contrato",null,"CASCAVEL","CE","23.760.412/0001-25","23255.006627/2022-00","EIDER ALVES PEREIRA","DR. ESTÁGIO","PRIVADA","2022-10-17",5,"2027-10-17","v. Chanceler Edson Queiroz, N° 3406, Rio Novo, Cascavel-CE","contato@drestagio.com.br","Agente de Integração de Vagas de Estágio","Eider Alves Pereira","Proprietário","(85) 99137-7789"]
[36,"Em andamento","Convênio",null,"FORTALEZA","CE","21.444.981/0001-36","23255.007662/2022-38","SOMA INSTITUIÇÃO DE PAGAMENTO SA","SOMAPAY","PRIVADA","2022-11-11",5,"2027-11-11","AV. WASHINGTON SOARES nº55 Edson Queiroz/CE CEP 60.811-341\n\nCidade: Fortaleza Estado: CE","geral@somapay.com.br","Concedente de vaga de estágio","Fernando Soares Gurgel","Presidente","(85)3215-6650"]
[37,"Em andamento","Convênio",null,"CAUCAIA","CE","07.358.761/0001-69","23255.007484/2022-45","GERDAU AÇOS LONGOS SA","GERDAU","PRIVADA","2022-11-16",5,"2027-11-16","Rodovia Br. 222, Km 32 ","cpg-deteicms@gerdau.com.br","Concedente de vaga de estágio","Anna Carolina Liberato ","Diretora de Recursos Humanos","(11)3094-6600"]
[38,"Em andamento","Convênio",null,"FORTALEZA","CE","06.928.790/0001-56","23255.008176/2022-37","Ministério Público do Estado do Ceará - MPCE","MPCE","PÚBLICA","2022-11-17",5,"2027-11-17","Av. General Afonso Albuquerque Lima - 130 Cambeba - Fortaleza/ce - CEP 60.822-325","apoio.asplan@mpce.mp.br"]
[39,"Em andamento","Convênio",null,"ACARAÚ","CE","34.017.937/0001-91","23264.001885/2022-82","CERVEJA JERICOACOARA INDUSTRIA E COMERCIO LTDA","CERVEJA JERICOACOARA","PRIVADA","2022-11-18",5,"2027-11-18","R CORONEL SALES, 595 -  CEP: 62580000 Cidade: ACARAU Estado: CE","cervejajericoacoara@gmail.com","Concedente de vaga de estágio","Thaynar Teles Osterno","Sócia Proprietária","(88)992137244"]
[40,"Em andamento","Convênio",null,"FORTALEZA","CE","23.651.139/0001-09","23255.007970/2022-63","QUEIROZ PARTICIPAÇOES S.A","GRUPO EDSON QUEIROZ","PRIVADA","2022-11-20",5,"2027-11-20","Rua Praça da Imprensa Chanceler Edson Queiroz , S/N – Dioniso Torres","dulci.vasconcelos@geq.com.br ","Concedente de vaga de estágio","Neuly Maria Oliveira Silva",null,"(85) 34668574"]
[41,"Em andamento","Convênio",null,"FORTALEZA","CE","26.989.715/0011-84","23255.009362/2022-93","MINISTÉRIO PÚBLICO FEDERAL/PROCURADORIA DA REPÚBLICA NO ESTADO DO CEARÁ ","MPF/PRCE","PÚBLICA","2022-11-22",5,"2027-11-22","Rua João Brígido, 1260, Bairro Joaquim Távora, CEP: 60.135-080,\nFortaleza/CE","prce-sest@mpf.mp.br","Concedente de vaga de estágio","Raquel Nogueira","Setor de Estágio"]
[42,"Em andamento","Contrato",null,"TAGUATINGA SUL","DF","11.320.576/0001-52","23255.006997/2022-39","SUPER ESTAGIOS LTDA","SUPER ESTAGIOS","PRIVADA","2022-12-08",5,"2027-12-08","Rua Copaíba, - EQSD 1/13 01 Torre B Sala nº 1306 Taguatinga Sul","atendimentoma@superestagios.com.br","Agente de Integração de Vagas de Estágio","Poliana Modenesi Ferraz",null,"(98) 3181-7367"]
[43,"Em andamento","Convênio",null,"SOBRAL ","CE","27.026.307/0001-18","23255.001816/2018-00","FACULDADE DE SOBRAL","FASOL","PRIVADA","2023-02-01",5,"2028-02-01","Av. Humberto Mendonça Lopes, 350, Domingos Olímpio","faculdadedesobral@gmail.com","Concedente de vaga de estágio","Francisco Sávio Ponte","DIRETOR GERAL","(88)993164118"]
[44,"Em andamento","Convênio",null,"EUSEBIO","CE","72.494.776/0001-16","23255.007185/2022-19","COOPERATIVA DE TRABALHO PARA PRESTACAO DE SERVICOS E ASSISTÊNCIA TECNICA LTDA","COCEPAT","PRIVADA","2023-02-10",5,"2028-02-10","AVENIDA: EUSEBIO DE QUEIROZ 4886 - BAIRRO CENTRO - EUSEBIO/CE","cocepat@gmail.com","Concedente de vaga de estágio","FERNANDO FRANCISCO LOPES OLIVEIRA","Diretor Presidente","(85)931210990"]
[45,"Em andamento","Convênio",null,"FORTALEZA","CE","42.008.329/0001-49","23255.001325/2023-18","INSTITUTO MIRANTE DE CULTURA E ARTE","INSTITUTO MIRANTE DE CULTURA E ARTE","PÚBLICA","2023-03-17",5,"2028-03-17","R DES LEITE ALBUQUERQUE 635 1006 ALDEOTA CEP 60150-150","presidencia@institutomirante.org","Concedente de vaga de estágio","Tiago Sobreira de Santana","Presidente","(85) 3486-0070"]
[46,"Em andamento","Convênio",null,"VESPAZIANO","MG","43.797.624/0001-94","23255.002329/2023-13","ROBSON BARBOSA DA SILVA 15803157716","L e P Design e Comunicação","PRIVADA","2023-03-27",5,"2028-03-27","Rua Sergipe, nº 280 – Celvia/Vespasiano/Minas Gerais CEP: 33.200-600","robsonferraz08@gmail.com","Concedente de vaga de estágio","Robson Barbosa da Silva","Presidente","(31)99825-9092"]
[47,"Em andamento","Convênio",null,"SÃO PAULO","SP","34.961.684/0001-00","23255.002639/2023-38","GLED ESCOLA INTERNACIONAL LTDA","GLED","PRIVADA","2023-03-29",5,"2028-03-29","Rua Mário Amaral, 533 - Paraíso CEP: 04002-021, São Paulo/SP ","hello@gled.in","Concedente de vaga de estágio","José Mario Aguilar Neto","Administrador","(11)2130-7777"]
[48,"Em andamento","Convênio",null,"PARNAÍBA","PI","07.649.362/0001-57","23491.000948/2023-81","FOX IN LINE TECHNOLOGIES LTDA","FOX IN LINE TECHNOLOGIES LTDA","PRIVADA","2023-05-16",5,"2028-05-16","Avenida Capitão Claro, Bairro Nova Parnaíba","wescilia@hotmail.com","Concedente de vaga de estágio","ELY BEZERRA SILVA JÚNIOR","DIRETOR DE TI","(86)981498642"]
[49,"Em andamento","Convênio","REITORIA","FORTALEZA","CE",null,"23255.000387/2023-11","Universidade Federal do Ceará - UFC","UFC","PÚBLICA","2023-06-07",5,"2028-06-07"]
[50,"Em andamento","Contrato",null,"RIO DE JANEIRO","RJ","33.663.519/0001-09","23262.000069/2023-52","FUNDAÇÃO MOVIMENTO UNIVERSITÁRIO DE DESENVOLVIMENTO ECONÔMICO E SOCIAL","MUDES","PRIVADA","2023-06-07",5,"2028-06-07","Rua México, 12º andar – Centro – Rio de Janeiro – CEP: 20.031-907","anascimento@mudes.org.br","Agente de Integração de Vagas de Estágio","Cleto de Assis","PRESIDENTE","(21)2148-6809/(21)96957-1982"]
[51,"Em andamento","Convênio","TIANGUÁ","TIANGUÁ","CE","15.083.742/0001-03","23491.002321/2023-64","ASSOCIAÇÃO FAMÍLIA AGRÍCOLA DA REGIÃO DA IBIAPABA ","AEFARI","PRIVADA","2023-08-25",5,"2028-08-25","SIT. ASSENTAMENTO NOVA ESPERANÇA/ BOM JESUS SÃO JOÃO S/N - ZONA RURAL","efaibiapabace@gmail.com","Concedente de vaga de estágio","Francisca de Sousa Morais","PRESIDENTE","(88) 9 9208-1934 "]
[52,"Em andamento","Contrato",null,"SÃO PAULO","SP","23.251.141/0001-82","23255.008306/2023-12","WALL JOBS TECNOLOGIA LTDA","WALL JOBS TECNOLOGIA LTDA","PRIVADA","2023-10-30",5,"2028-10-30","Rua Cunha, 118, Bairro: Vila Clementino. Cidade/Estado: São Paulo/SP. CEP: 04037-030","Henrique.calandra@walljobs","Agente de Integração de Vagas de Estágio","Matheus Christian de Jesus Santos","SÓCIO Proprietário","(11) 4780-5877"]
[53,{"$f":"IF(L58<>\"\",IF(N58>=TODAY(),\"Em andamento\",\"VENCIDO\"),\"\")","v":"Em andamento"},"Convênio","REITORIA","FORTALEZA","CE","06.026.531/0001-30","23255.009673/2023-33","TRIBUNAL REGIONAL ELEITORAL DO CEARÁ","TRE","PÚBLICA","2024-01-11",5,"2029-01-11","Rua Dr. Pontes Neto 800 - Eng. Luciano Cavalcante - Fortaleza/CE - CEP 60813-600","secon@tre-ce.jus.br","Concedente de vaga de estágio","Raimundo Nonato Silva","DESEMBARGADOR","(85) 3453-3500"]
[54,"Em andamento","Convênio","REITORIA","FORTALEZA","CE","00.138.834/0001-74","23255.002439/2024-66","UNIÃO DE EDUCAÇÃO E CULTURA VALE DO JAGUARIBE LTDA","UNIJAGUARIBE","PRIVADA","2024-04-03",5,"2029-04-03","Rodovia CE 040, Km 138 S/Nº, Aracati ","estagio@unijaguaribe.edu.br","Concedente de vaga de estágio","Antonio Henrique Dummar Antero","REITOR","0800 000 0722"]
[55,"Em andamento","Contrato","REITORIA","PARÁ DE MINAS","MG","01.406.617/0001-74","23255.005960/2024-55","AGÊNCIA DE INTEGRAÇÃO EMPRESA ESCOLA LTDA","AGIEL","PRIVADA","2024-08-29",5,"2029-08-29","Praça padre José Pereira Coelho, 132, sala 406, Centro – Pará de Minas/MG, CEP: 35660015","escolas@agiel.com.br","Agente de Integração de Vagas de Estágio","Guilherme Almada Morais","Sócio ","(31) 4141-3200"]
[56,"Em andamento","Convênio","TIANGUÁ","TIANGUÁ","CE","31.874.655/0002-01","23491.002125/2024-71","EMAPE TERCEIRA GERAÇÃO AVÍCOLA LTDA","EMAPE","PRIVADA","2024-07-24",5,"2029-07-24","RODOVIA CE 187, KM 04",null,"Concedente de vaga de estágio","Glauber Calixto Menezes","Assistente de Controladoria","(88)3112-1095"]
[57,"Em andamento","Contrato","REITORIA","FORTALEZA","CE","52.302.966/0001-87","23255.007527/2024-54","MR Estágio Intermediação e Integração Profissional","MR","PRIVADA","2024-11-05",5,"2029-11-05","Av Barão de Studart, 1165","gestaomrestagio@gmail.com","Concedente de vaga de estágio","Maria Monica Reis de Moura","Sócia","(85)99791-8544"]
[58,{"$f":"IF(L63<>\"\",IF(N63>=TODAY(),\"Em andamento\",\"VENCIDO\"),\"\")","v":"Em andamento"},"Contrato","REITORIA","VOTUPORANGA","SP","22.369.844/0001-47","23255.008598/2024-74","EMPREGAR JÁ ESTÁGIOS E EFETIVOS LTDA","Empregar Ja","PRIVADA","2024-12-04",5,"2029-12-04","Rua Tibagi, Nº 3451 – SALA 01","contratos@empregarjamail.com.br","Agente de Integração de Vagas de Estágio","Antonio Barbiere","Sócio","(17) 996633496"]
[59,"Em andamento","Convênio","REITORIA","FORTALEZA","CE","09.499.757/0001-46","23255.002279/2024-55","TRIBUNAL DE CONTAS DO ESTADO DO CEARÁ","TCE/CE","PÚBLICA","2024-12-12",2,"2026-12-12","Rua Sena Madureira, nº 1.047, Centro, CEP: 60.055-080,\nFortaleza/CE","acc@tce.ce.gov.br","Concedente de vaga de estágio","RHOLDEN BOTELHO DE QUEIROZ","Desembargador","(85) 3488.5900"]